{"text_format":"1","workbook":"xlsx","n_sheets":2,"sheets":["Tabelle1","Tabelle2"],"not_rendered":{"charts":0,"images":1,"macros":1,"external_links":0,"defined_names":2,"comments":0,"pivot_tables":0},"unopened":[],"bounds":{"document_bytes":16777216,"sheet_cells":100000,"rows_first":2000,"rows_last":500,"rows_between":2000,"halvings":0,"cell_chars":16384,"cell_head_chars":4096},"cells_cut":0,"cells_raw":0,"read":"whole","date_system":"1900"}

{"sheet":"Tabelle1","index":0,"n_rows":47,"n_cols":11,"rows_kept":47,"cut":false,"hidden":false,"merged":[[3,6,3,7],[11,0,11,2],[10,0,10,2],[9,0,9,2],[4,0,4,1],[5,0,5,1],[6,0,6,1],[7,0,7,1],[19,0,19,1],[20,0,20,1],[21,0,21,1],[22,0,22,1],[3,0,3,4],[8,0,8,4],[1,0,1,10],[0,0,0,1],[28,0,28,9],[40,1,40,10],[29,1,29,10],[30,1,30,9],[31,1,31,9],[32,1,32,9],[33,1,33,9],[34,1,34,9],[35,1,35,9],[37,1,37,9],[12,0,12,7],[7,2,7,4],[0,8,0,10],[18,0,18,1],[22,2,22,7],[23,2,23,7],[4,2,4,4],[5,2,5,4],[5,8,5,10],[6,2,6,4],[4,9,4,10],[11,6,11,8],[10,6,10,8],[7,6,7,7],[6,6,6,7],[5,6,5,7],[4,6,4,7],[26,0,26,1],[27,0,27,1],[2,3,2,4],[2,7,2,10],[3,8,3,10],[24,2,24,7],[25,1,25,10],[12,8,12,10],[9,3,9,10],[10,3,10,4],[11,3,11,4],[11,9,11,10],[14,2,14,7],[19,2,19,7],[20,2,20,7],[21,2,21,7],[42,0,42,5],[6,9,6,10],[27,2,27,7],[36,0,36,10],[13,2,13,7],[15,2,15,7],[16,2,16,7],[17,2,17,7],[18,2,18,7],[13,0,13,1],[14,0,14,1],[15,0,15,1],[16,0,16,1],[17,0,17,1],[23,0,23,1],[24,0,24,1]]}
[]
["Auftrag für Zähler-/Gerätewechsel"]
[null,null,null,null,null,null,null,2]
["Auftraggeber",null,null,null,null,null,"Netze BW GmbH ·",null,{"$f":"VLOOKUP(H3,Tabelle2!A1:E8,3,FALSE)","v":"Eltastraße 1-5 · 78532 Tuttlingen"}]
["Name",null,null,null,null,null,"Telefon",null,{"$f":"VLOOKUP(H3,Tabelle2!A1:E8,4,FALSE)","v":"07461/709-"}]
["Anschrift",null,null,null,null,null,"Fax",null,{"$f":"VLOOKUP(H3,Tabelle2!A1:E8,5,FALSE)","v":"07461/709-488"}]
[null,null,null,null,null,null,"Ansprechpartner",null,"Anschlussservice "]
["Telefon",null,null,null,null,null,"Datum",null,{"$f":"TODAY()","v":"2020-02-25"}]
["Anschlussobjekt"]
["Ort, Straße, Hausnummer"]
["Netze BW Nr.",null,null,null,null,null,"Eingebaute Sicherheitsgröße",null,null,null,"A"]
["Erledigungsvermerk Geräteumbau",null,null,null,null,null,"Erledigungsdatum Abrechnung"]
["Pauschalpreise für Zähler-/Gerätewechsel auf Kunden- oder Lieferantenwunsch",null,null,null,null,null,null,null,"(Preisstand 01.01.2018)"]
["Menge",null,"Artikel / Dienstleistung",null,null,null,null,null,"netto [€]\nEinzelpreis","brutto [€]\nEinzelpreis","brutto [€]\nGesamtpreis"]
[null,null,"Wechsel SLP1) (z.B. Wechsel 1- auf 2-Energierichtung., Wechsel- auf Drehstrom, 3-Punkt auf eHZ)7)",null,null,null,null,null,85,{"$f":"I15*1.19","v":101.14999999999999},{"$f":"IF(A15=\"\",\"\",J15*A15)","v":""}]
[null,null,"Wechsel SLP1) mit Ein- oder Ausbau des TSG2) (z.B. Zweitarif- auf Eintarifzähler)6) 7)",null,null,null,null,null,120,{"$f":"I16*1.19","v":142.79999999999998},{"$f":"IF(A16=\"\",\"\",J16*A16)","v":""}]
[null,null,"Einheitspreis SLP1) ab dem zweiten Gerät innerhalb eines Gebäudes (je Gerätewechsel)7)",null,null,null,null,null,60,71.399999999999991,""]
[null,null,"Wechsel/Ausbau des TSG2)",null,null,null,null,null,85,101.14999999999999,""]
[null,null,"Wechsel/Einbau des Modems (z.B. Rückbau von Funk- auf Festnetzmodem)",null,null,null,null,null,125,148.75,""]
[null,null,"Niederspannung Wandlertausch, Wechsel von direkt messend auf Wandlermessung,\nVersetzung5) der SLP1)- oder LGZ3)-Messung (z.B. in eine neue Kundenstation) oder \nWechsel LGZ3) (z.B. von 1- auf 2-Energierichtungszählung)7)\nMit dieser Position ist nicht der Zählverfahrenswechsel (LGZ auf SLP oder umgekehrt) gemeint, denn der Zählverfahrenswechsel kann nur vom Lieferanten beauftrag werden.\nPreise für Zählverfahrenswechsel im Rücklieferbereich von SEP auf EGZ oder umgekehrt sind auf unserer Homepage unter dem Suchbegriff „zusätzliche Serviceleistungen“ veröffentlicht.",null,null,null,null,null,260,309.39999999999998,""]
[null,null,"PIN-Änderung beim EDL21 nach §21b (3a) und (3b) EnWG a.F., bzw. EDL40 entspr. Zählerwechsel",null,null,null,null,null,85,101.14999999999999,""]
[null,null,"Erneuter Zählereinbau nach vorherigem Ausbau4)",null,null,null,null,null,85,101.14999999999999,""]
[null,null,"Einrichtung der „Steuerimpulse“ oder der „Summierung vor Ort“ (zur einmaligen Einrichtung über 145,- € fällt ein jährliches MSB-Entgelt von 55,- €/Jahr für die „Steuerimpulse“, bzw. 250,- €/Jahr für die „Summierung vor Ort“ an); abrechnungsrelevant bleiben Messwerte des Zählers",null,null,null,null,null,145,172.54999999999998,""]
[null,null,null,null,null,null,null,null,null,0,""]
[null,null,null,null,null,null,null,null,null,0,""]
[]
[null,null,"Gerätewechsel wegen",{"$f":"VLOOKUP(F27,Tabelle2!A11:B16,2,FALSE)","v":"Versetzung Zählerschrank"},null,1]
[null,null,"Gesamtsumme (Bitte überweisen Sie den Betrag erst nach Erhalt der Rechnung)",null,null,null,null,null,null,null,{"$f":"IF(SUM(K15:K25)>0,SUM(K15:K25),\"\")","v":""}]
["Nichtzutreffendes bei der Beispielnennung bitte streichen, oder eine der beiden Freitextlinien zur Präzisierung nützen"]
["1)","SLP: Jahresarbeitszähler, entspricht: Ferraris-Zähler, elektronischer Zähler, EDL21 und EDL40, sowie moderne Messeinrichtung (mME).\nAusführungsvarianten: Wechsel- oder Drehstromzähler in Ein- oder Zweitarifausführung, sowie für eine oder 2 Energierichtungen"]
["2)","TSG: Tarifschaltgerät, entspricht Tonfrequenz- oder Funkrundsteuergerät, Schaltuhren"]
["3)","LGZ: Lastgangzähler, gilt für direkt messende, sowie für Wandlerzähler in der Nieder- oder Mittelspannung"]
["4)","Zum Ansatz kommt § 14 Abs. 3 NAV. Die Pauschale wird fällig, bei erneutem Einbau des Zählers innerhalb von 4 Monaten nach der Beauftragung zum Zählerausbau, \nz.B. Mietwohnung, die max. 4 Monate leer stand. Bei Anlagen, die mehr als 4 Monate ohne Zähler waren, bedarf es einer Fertigstellungsanzeige"]
["5)","Versetzung gilt nur für Bestandsanlagen"]
["6)","Ausnahme stellt die Elektroheizung mit gemeinsamer Messung dar, hierbei fallen keine Wechselkosten an"]
["7)","Bei Verdrahtungsarbeiten am Zählerfeld ist eine Fertigstellungsanzeige vom Elektroinstallateur notwendig"]
["Die o. a. Bruttobeträge enthalten die gesetzliche Umsatzsteuer zum Zeitpunkt der Ausführung (z. Zt. 19 %). \nDiese Kostenpauschalen gelten ausschließlich für die Ausführung der Arbeiten innerhalb der regulären Arbeitszeiten, diese sind Mo – Fr von 7.00 – 16.00 Uhr."]
[]
["Auftragserteilung"]
["Ort, Datum, Unterschrift Auftraggeber"]
[null,"Hiermit erteile ich der Netze BW GmbH den Auftrag, auf der Basis der oben gekennzeichneten Position die Arbeit zum Festbetrag bzw. nach Aufwand, auszuführen.\nNimmt ein Installateur Montagen, bzw. Erweiterungen innerhalb des Zählerplatzes vor, erfolgt der Einbau/Wechsel von Zählern und Geräten nur in TAB-gerechten Zählerplätzen. \nDiese sind durch einen eingetragenen Installateur bei der Netze BW fertig zu melden.\nFür den Umbau der Kundenanlage fällt eine separate Rechnung durch den Installateur an.\nHiermit bestätige ich, dass bei Maßnahmen, die auch meinen aktuellen Energielieferanten betreffen, mir dessen Einverständniserklärung vorliegt."]
["Bitte senden Sie dieses Formular unterschrieben an Ihr zuständiges Regionalzentrum (Adresse siehe oben oder im Internet unter "]
["http://www.netze-bw.de/unternehmen/ueber-uns/standorte-in-bawue/index.html"]
[null,null,null,null,null,null,{"$f":"VLOOKUP(H3,Tabelle2!A1:E8,2,FALSE)","v":"Region Heuberg-Bodensee"}]
[{"$f":"TEXT(\"Netze BW GmbH\" & \" \" & (G44),0)","v":"Netze BW GmbH Region Heuberg-Bodensee"}]
["Sitz der Gesellschaft: Stuttgart · Amtsgericht Stuttgart · HRB Nr. 747734"]
["Vorsitzender des Aufsichtsrats: Dr. Hans-Josef Zimmer · Geschäftsführer: Dr. Christoph Müller (Vorsitzender), Dr. Martin Konermann, Bodo Moray, Steffen Ringwald"]

{"sheet":"Tabelle2","index":1,"n_rows":16,"n_cols":5,"rows_kept":16,"cut":false,"hidden":true,"merged":[]}
[1,"bitte wählen"]
[2,"Region Heuberg-Bodensee","Eltastraße 1-5 · 78532 Tuttlingen","07461/709-","07461/709-488"]
[3,"Region Mittlerer Neckar - Gebiet Alb-Neckar","Hahnweidstraße 44 · 73230 Kirchheim u. Teck","07021/8009-","07021/8009-59520"]
[4,"Region Mittlerer Neckar - Gebiet Schwarzwald-Neckar","Heinrich-Lanz-Str. 3 · 70825 Korntal-Münchingen ","07150/9137-","0721/9142-1748"]
[5,"Region Neckar-Franken","Weipertstraße 41 · 74076 Heilbronn","07131/1234-","0721/9142-1544"]
[6,"Region Nordbaden","Zeppelinstraße 15-19 · 76275 Ettlingen","07243/180-","07243/180-176"]
[7,"Region Oberschwaben","Adolf-Pirrung-Straße 7 · 88400 Biberach","07351/53-","07351/53-2171"]
[8,"Region Rheinhausen","Herbolzheimer Straße 36 · 79365 Rheinhausen","07643/808-","07643/808-133"]
[]
[]
[1,"Versetzung Zählerschrank"]
[2,"Einbau PV-Anlage"]
[3,"Einbau BHKW"]
[4,"Umbau mechan. auf elektron. Zähler"]
[5,"Umbau Wechsel- auf Drehstromzähler"]
[6,"Umbau von 1- auf 2-Energierichtungen"]